Cogmind - Beta 14 @@@ ROGUE MODE // 2024.11.09 @ 13:07:48 Player: Fangrelle Result: Destroyed self with Rocket Launcher Performance ------------- Evolutions (0) 0 Regions Visited (4) 800 Robots Destroyed (39) 195 Value Destroyed (896) 896 Prototype IDs (25) 500 Alien Tech Used (0) 0 Bonus (325) 325 TOTAL SCORE: 2716 Bonus ------- Follower Combat Kills 25 Aligned with FarCom 300 Cogmind --------- Core Integrity 0/250 Matter 205/300 Energy 100/100 System Corruption 0% Temperature Cool (0) Movement Treading (960) Ox10 Location -9/Mines Parts ------- > --- POWER (1) -------- (None) > --- PROPULSION (2) --- Light Treads > --- UTILITY (2) ------ Humpback > --- WEAPON (2) ------- Rocket Launcher > --- INVENTORY (35) --- Flying Fortress v7 Small Storage Unit Humpback High-capacity Battery (250) High-capacity Matter Pod (200) High-capacity Matter Pod (200) High-capacity Matter Pod (184) Sensor Array Terrain Scanner Improved Terrain Scanner Transport Network Coupler Light Armor Plating Hacking Suite Grenade Launcher Grenade Launcher Datajack Peak State ------------ > --- POWER ------------ (None) > --- PROPULSION ------- Light Treads Light Treads > --- UTILITY ---------- Humpback > --- WEAPON ----------- Grenade Launcher Rocket Launcher > --- INVENTORY -------- Flying Fortress v7 Small Storage Unit Humpback High-capacity Battery High-capacity Matter Pod High-capacity Matter Pod High-capacity Matter Pod Sensor Array Terrain Scanner Improved Terrain Scanner Transport Network Coupler Light Armor Plating Hacking Suite Assault Rifle Grenade Launcher Datajack [Rating: 12] Favorites ----------- Power Light Ion Engine Engine Light Ion Engine Propulsion Light Treads Treads Light Treads Utility Small Storage Unit Device Improved Terrain Scanner Storage Small Storage Unit Protection Light Armor Plating Weapon Grenade Launcher Energy Gun Medium Laser Ballistic Gun Assault Rifle Launcher Grenade Launcher Build | -11 -10 -10 -10 -9 ------- Run | Yrd Mat Min Exi Min Slots Evolved . | . . . . . Power . | . . . . . Propulsion . | . . . . . Utility . | . . . . . Weapon . | . . . . . Parts Attached 25 | 7 8 7 1 2 Power 3 | 1 2 . . . Engine 3 | 1 2 . . . Core . | . . . . . Reactor . | . . . . . Propulsion 4 | 2 . 2 . . Treads 4 | 2 . 2 . . Leg . | . . . . . Wheel . | . . . . . Hover . | . . . . . Flight . | . . . . . Utility 6 | 2 . 3 1 . Device 2 | 1 . 1 . . Storage 2 | 1 . . 1 . Processor . | . . . . . Hackware . | . . . . . Protection 2 | . . 2 . . Artifact . | . . . . . Weapon 12 | 2 6 2 . 2 Energy Gun 2 | 1 1 . . . Energy Cannon . | . . . . . Ballistic Gun 4 | 1 1 1 . 1 Ballistic Cannon . | . . . . . Launcher 6 | . 4 1 . 1 Special Weapon . | . . . . . Impact Weapon . | . . . . . Slashing Weapon . | . . . . . Piercing Weapon . | . . . . . Special Melee Weapon . | . . . . . Unidentified Prototypes . | . . . . . Parts Lost 4 | . 1 2 . 1 Power 2 | . 1 1 . . Propulsion 1 | . . . . 1 Utility 1 | . . 1 . . Weapon . | . . . . . Highest Loss Streak 2 | . 1 2 . 1 To Critical Strikes . | . . . . . Average Slot Usage (%) 81 | . 97 84 71 70 Engine 4 | . 11 4 . . Treads 27 | . 28 28 28 27 Device 5 | . 14 5 . . Storage 13 | . 14 14 13 14 Launcher 26 | . 22 27 28 27 Peak Build Rating 12 | 9 9 9 11 12 Average Rating 8 | 4 8 7 8 11 On Entrance 7 | . 9 9 9 11 Naked Turns . | . . . . . Heaviest Build 207 | 12 15 16 206 207 Greatest Support 40 | 40 40 40 40 40 Greatest Overweight (x) 5 | 3 . . 5 5 Average Overweight (x) 1 | . . . 4 5 Largest Inventory Capacity 35 | 8 8 8 35 35 Average Capacity 20 | 7 8 8 33 35 Most Carried 20 | 4 8 8 19 20 Average Carried 12 | 3 7 7 15 19 Final Capacity 35 | 8 8 8 35 35 Final Carried 20 | 4 7 8 19 20 Class Distribution -------------------- 51% | Mutant 48% | Hauler-Mutant Dominant Class ---------------- Mutant | -10/Materials Mutant | -10/Mines Hauler-Mutant | -10/Exiles Hauler-Mutant | -9/Mines Resources | -11 -10 -10 -10 -9 ----------- Run | Yrd Mat Min Exi Min Matter Collected 850 | 212 280 310 48 . Remotely . | . . . . . Salvage Created 643 | 22 379 196 . 46 Parts 56 | 5 33 17 . 1 Haulers Intercepted 1 | . 1 . . . Recyclers Shooed . | . . . . . Parts Field Recycled . | . . . . . Retrieved Matter . | . . . . . Parts Self-Destructed . | . . . . . Prevented . | . . . . . Kills | -11 -10 -10 -10 -9 ------- Run | Yrd Mat Min Exi Min Combat Hostiles Destroyed 23 | . 12 9 . 2 Guns 2 | . 2 . . . AOE 21 | . 10 9 . 2 Classes Destroyed 13 | 1 8 3 . 1 Worker 3 | . 3 . . . Builder 4 | . 1 3 . . Tunneler 3 | 1 1 1 . . Hauler 1 | . 1 . . . Recycler 1 | . . 1 . . Mechanic 1 | . 1 . . . Operator 1 | . 1 . . . Watcher 3 | . 3 . . . Swarmer 6 | . 3 3 . . Grunt 13 | . 9 3 . 1 Duelist 1 | . . . . 1 Demolisher 2 | . . 2 . . Assembled 1 | . . 1 . . Best Kill Streak 8 | 1 4 8 . 2 Combat Bots Only 5 | . 3 5 . 2 Max Kills in Single Turn 3 | 1 3 3 . 1 Gunslinging . | . . . . . Exploded 3 | . 2 3 . 1 Melee . | . . . . . Uniques/NPCs Destroyed . | . . . . . Combat | -11 -10 -10 -10 -9 -------- Run | Yrd Mat Min Exi Min Hostile Shots Fired 98 | . 30 35 . 33 Missed 31 | . 13 10 . 8 Damage Taken 1224 | . 235 545 . 444 Core 251 | . 68 80 . 103 Absorbed by Shields . | . . . . . Core Remaining (%) 100 | 100 . . . . Volleys Fired 59 | 1 32 16 . 10 Largest 2 | 2 2 2 . 2 Hottest 70 | 70 70 60 . 63 Shots Fired 91 | 2 56 22 . 11 Gun 34 | 2 24 3 . 5 Cannon . | . . . . . Launcher 57 | . 32 19 . 6 Special . | . . . . . Kinetic 21 | 1 12 3 . 5 Thermal 13 | 1 12 . . . Explosive 57 | . 32 19 . 6 Electromagnetic . | . . . . . Robot Hit Streak 17 | 1 17 7 . 6 Robot Miss Streak 2 | 1 2 2 . 1 Penetration Max . | . . . . . Secondary Targets . | . . . . . Shots Hit Robots 40 | 1 25 8 . 6 Core Hits 74 | 1 43 26 . 4 Critical Kills . | . . . . . Critical Parts Destroyed . | . . . . . Critical Strikes . | . . . . . Melee Attacks . | . . . . . Impact . | . . . . . Slashing . | . . . . . Piercing . | . . . . . Sneak Attacks . | . . . . . Combat Hostiles . | . . . . . Follow-up Attacks . | . . . . . Damage Inflicted 2512 | 10 1377 873 . 252 Guns 348 | 10 276 14 . 48 Cannons . | . . . . . Explosions 2161 | . 1098 859 . 204 Melee . | . . . . . Ramming 3 | . 3 . . . Kinetic 214 | 10 142 14 . 48 Thermal 134 | . 134 . . . Explosive 2161 | . 1098 859 . 204 Electromagnetic . | . . . . . Impact . | . . . . . Slashing . | . . . . . Piercing . | . . . . . Highest Corruption . | . . . . . Average Corruption . | . . . . . Corruption Purged . | . . . . . Corruption Blocked . | . . . . . Overload Shots . | . . . . . Overflow Damage 59 | . 59 . . . Projectiles . | . . . . . Explosions 59 | . 59 . . . Melee . | . . . . . Knockbacks . | . . . . . Impact . | . . . . . Kinetic . | . . . . . Secondary . | . . . . . Self-Inflicted Damage 189 | . 20 93 . 76 Shots 9 | . 1 5 . 3 Rammed 1 | . 1 . . . Targets Rammed 1 | . 1 . . . Kicked . | . . . . . Crushed . | . . . . . Highest Temperature 123 | 30 123 35 . 2 Average Temperature 44 | 18 55 13 . 2 Received Heat Transfer 352 | . 84 154 . 114 Siege Activations . | . . . . . Robots Corrupted . | . . . . . Combat Hostiles . | . . . . . Parts Fried . | . . . . . Impact Corruptions . | . . . . . Robots Melted . | . . . . . Combat Hostiles . | . . . . . Parts Melted 2 | . 2 . . . Heat Transferred 370 | . 370 . . . Parts Sabotaged . | . . . . . Parts Stolen . | . . . . . Parts Stripped . | . . . . . Power Chain Reactions . | . . . . . Alert | -11 -10 -10 -10 -9 ------- Run | Yrd Mat Min Exi Min Peak Influence 328 | 5 328 257 . 39 Initial 63 | . 3 63 . . Average 81 | . 140 96 . . Maximum Alert Level 1 | . 1 1 . . Low Security (%) 85 | 100 80 75 . 100 Level 1 14 | . 19 24 . . Level 2 . | . . . . . Level 3 . | . . . . . Level 4 . | . . . . . Level 5 . | . . . . . High Security . | . . . . . Max Security . | . . . . . Squads Dispatched 3 | . 3 . . . Investigation 2 | . 2 . . . Extermination . | . . . . . Reinforcement 1 | . 1 . . . Assault . | . . . . . Garrison . | . . . . . Intercept . | . . . . . Searches Triggered . | . . . . . Construction Impeded . | . . . . . Haulers Reinforced . | . . . . . Active Scanning Responses . | . . . . . Cargo Convoy Interrupts . | . . . . . Stealth | -11 -10 -10 -10 -9 --------- Run | Yrd Mat Min Exi Min Distress Signals 1 | . 1 . . . Communications Jammed . | . . . . . Distress Signals . | . . . . . Times Spotted 50 | . 20 27 . 3 Peak Tracking Total 18 | . 3 18 . 3 Tactical Retreats 1 | . . 1 . . Traps | -11 -10 -10 -10 -9 ------- Run | Yrd Mat Min Exi Min Traps Triggered 2 | . 2 . . . Indirectly . | . . . . . Trap Hack Attempts . | . . . . . Triggered . | . . . . . Disarmed . | . . . . . Reprogrammed . | . . . . . Reused . | . . . . . Traps Extracted . | . . . . . Installed . | . . . . . Triggered . | . . . . . Machines | -11 -10 -10 -10 -9 ---------- Run | Yrd Mat Min Exi Min Machines Disabled 6 | . 3 3 . . Max in Single Turn 2 | . 1 2 . . Machines Repaired . | . . . . . Machines Dismantled . | . . . . . Machines Sabotaged . | . . . . . Overloaded Fab Kills . | . . . . . Hacking | -11 -10 -10 -10 -9 --------- Run | Yrd Mat Min Exi Min Machines Accessed 12 | . 9 . 3 . Terminals 7 | . 7 . . . Fabricators . | . . . . . Repair Stations . | . . . . . Recycling Units 2 | . 2 . . . Scanalyzers . | . . . . . Garrison Access . | . . . . . Total Hacks 51 | . 33 . 18 . Successful 39 | . 21 . 18 . Failed 12 | . 12 . . . Catastrophic . | . . . . . Database Lockouts . | . . . . . Manual 31 | . 30 . 1 . Terminals 28 | . 28 . . . Fabricators . | . . . . . Repair Stations . | . . . . . Recycling Units 5 | . 5 . . . Scanalyzers . | . . . . . Garrison Access . | . . . . . Terminal Hacks 21 | . 3 . 18 . Record 17 | . . . 17 . Robot Analysis 1 | . 1 . . . Prototype ID Bank 1 | . 1 . . . Terminal Index 1 | . 1 . . . Derelict Proto ID Bank 1 | . . . 1 . Fabricator Hacks . | . . . . . Repair Station Hacks . | . . . . . Recycling Unit Hacks 2 | . 2 . . . Report Inventory 1 | . 1 . . . Retrieve Matter 1 | . 1 . . . Scanalyzer . | . . . . . Garrison Access Hacks . | . . . . . Unauthorized Hacks 16 | . 16 . . . Terminals 14 | . 14 . . . Track 1 | . 1 . . . Assimilate 5 | . 5 . . . Botnet 7 | . 7 . . . Operators 1 | . 1 . . . Fabricators . | . . . . . Repair Stations . | . . . . . Recycling Units 2 | . 2 . . . Tunnel 2 | . 2 . . . Scanalyzers . | . . . . . Garrison Access . | . . . . . Data Cores Recovered . | . . . . . Used . | . . . . . Hacking Detections 8 | . 8 . . . Full Trace Events . | . . . . . Feedback Events . | . . . . . Feedback Blocked . | . . . . . Robot Schematics Acquired . | . . . . . Robots Built . | . . . . . Authchips . | . . . . . Time . | . . . . . Total Robot Build Rating . | . . . . . Part Schematics Acquired . | . . . . . Parts Built . | . . . . . Authchips . | . . . . . Time . | . . . . . Total Part Build Rating . | . . . . . Parts Repaired . | . . . . . Time . | . . . . . Parts Recycled . | . . . . . Recycled Matter . | . . . . . Retrieved Matter 149 | . 149 . . . Retrieved Components . | . . . . . Parts Scanalyzed . | . . . . . Part Schematics Acquired . | . . . . . Parts Damaged . | . . . . . Bothacking | -11 -10 -10 -10 -9 ------------ Run | Yrd Mat Min Exi Min Used RIF Installer . | . . . . . Robots Hacked . | . . . . . Non-combat . | . . . . . Combat . | . . . . . Robot Hacks Applied . | . . . . . Relay Couplers Released . | . . . . . Fabnet Peak Effective % . | . . . . . Robots Rewired . | . . . . . Allies Hacked . | . . . . . Hacks Repelled . | . . . . . Allies | -11 -10 -10 -10 -9 -------- Run | Yrd Mat Min Exi Min Total Allies 4 | . 1 3 . . Largest Group 3 | . 1 3 3 3 Highest-Rated Group 40 | . 10 40 40 40 Highest-Rated Ally 16 | . 10 16 16 16 Total Orders 5 | . 2 . . 3 STAY 4 | . 1 . . 3 FOLLOW 1 | . 1 . . . Ally Attacks 7 | . . 7 . . Total Damage 50 | . . 50 . . Kills 1 | . . 1 . . Allies Corrupted . | . . . . . Allies Melted . | . . . . . Intel | -11 -10 -10 -10 -9 ------- Run | Yrd Mat Min Exi Min Robot Analysis Total 1 | . 1 . . . Derelict Logs Recovered 4 | . . 1 . 3 Drone Launches . | . . . . . Drone Recoveries . | . . . . . Exploration | -11 -10 -10 -10 -9 ------------- Run | Yrd Mat Min Exi Min Turns Passed 7230 | 123 1992 1522 1985 1608 Spaces Moved 2701 | 79 1016 917 408 281 Core 35 | 35 . . . . Treads 2666 | 44 1016 917 408 281 Legs . | . . . . . Wheels . | . . . . . Hover . | . . . . . Flight . | . . . . . Fastest Speed 50 | 50 160 160 160 560 Average Speed 249 | 135 160 160 484 560 Slowest Speed 560 | 200 160 160 560 560 Overloaded Moves . | . . . . . Propulsion Burnouts . | . . . . . Robots Hopped . | . . . . . Cave-ins Triggered . | . . . . . Exploration Rate (%) 67 | 5 98 100 70 63 Regions Visited 4 Branch Regions 3 Pre-discovered Areas 4 | . 2 . 1 1 Known Exits Taken 1 | . . . 1 . Unknown Exits Taken 3 | 1 1 1 . . Scrap Searched 1 | . . 1 . . Spaces Dug 5 | . 5 . . . Terrain Destroyed 274 | . 149 93 . 32 Melee . | . . . . . Projectile . | . . . . . AOE 274 | . 149 93 . 32 Terrain Rammed . | . . . . . Walls Destroyed . | . . . . . Machines Disabled . | . . . . . Actions | -11 -10 -10 -10 -9 --------- Run | Yrd Mat Min Exi Min Total 3089 | 90 1325 948 421 305 Wait 272 | . 257 4 . 11 Move 2697 | 78 1015 916 407 281 Hop . | . . . . . Pick Up 25 | 4 8 2 10 1 Fast Attach 10 | 7 1 1 1 . Attach 1 | . 1 . . . Detach . | . . . . . Swap 14 | . 6 6 . 2 Drop 10 | . 4 3 3 . Fire 59 | 1 32 16 . 10 Melee . | . . . . . Ram . | . . . . . Kick . | . . . . . Crush 1 | . 1 . . . Escape Stasis . | . . . . . Rewire . | . . . . . Trap . | . . . . . Miscellaneous . | . . . . . Route ------- -11/Scrapyard -10/Materials (discovered 4 exits: [*Mat x3] / [*Min]) -10/Mines (discovered 4 exits: [*Mat x2] / *Exi / [*Sub]) -10/Exiles (discovered 2 exits: *Min x2) -9/Mines (discovered 1 exit: [*Mat]) History --------- Turn | Location | Event 4 | -11/Scrapyard | Discovered new exit (range 16) 124 | -11/Scrapyard | Entered Materials 312 | -10/Materials | Build established: Mutant 353 | -10/Materials | Discovered new exit (range 10) 567 | -10/Materials | Discovered new exit (range 8) 974 | -10/Materials | Discovered new exit (range 8) 1439 | -10/Materials | Discovered new exit (range 13) 2116 | -10/Materials | Entered Mines 2116 | -10/Mines | Accompanied by 1 ally 2150 | -10/Mines | Discovered new exit (range 13) 2326 | -10/Mines | Met a Derelict bent on vengeance 2518 | -10/Mines | Assembled infested the area 2553 | -10/Mines | Core integrity fell below 50% 2658 | -10/Mines | Discovered new exit (range 8) 2674 | -10/Mines | Assisted by bots powering up and referring to "LRC-V3" 3122 | -10/Mines | Joined a pair of Derelicts in attacking an 0b10 outpost 3290 | -10/Mines | Discovered new exit (range 7) 3626 | -10/Mines | Deemed a non-threat by the Exiles lab entrance 3626 | -10/Mines | Discovered new exit (range 5) 3638 | -10/Mines | Entered Exiles 3638 | -10/Exiles | Accompanied by 3 allies 3639 | -10/Exiles | Identified exit to Mines 3681 | -10/Exiles | Met 8R-AWN 3709 | -10/Exiles | Met EX-HEX 3927 | -10/Exiles | Met EX-DEC 4050 | -10/Exiles | Build established: Hauler-Mutant 4446 | -10/Exiles | Learned location of Zion (-7) 4574 | -10/Exiles | Met EX-BIN 4653 | -10/Exiles | Aligned with FarCom system 4658 | -10/Exiles | Given EX-Vault access code 4815 | -10/Exiles | Opened EX-Vault 4849 | -10/Exiles | Found Flying Fortress v7 5012 | -10/Exiles | Warned to stay clear of 0b10 Research branches 5623 | -10/Exiles | Left Exiles lab with Flying Fortress v7 5623 | -10/Exiles | Entered Mines 5623 | -9/Mines | Accompanied by 3 allies 5624 | -9/Mines | Learned location of Storage (-9) 5786 | -9/Mines | Learned Materials interactive machine intel 6330 | -9/Mines | Received a Rocket Launcher from a helpful Derelict 7225 | -9/Mines | Core integrity fell below 20% 7225 | -9/Mines | Discovered new exit (range 15) 7231 | -9/Mines | Destroyed self with Rocket Launcher Last Messages --------------- 06324_ A derelict emerges from the shadows. 06325_ 6U-TBF(g): "Some of my friends down here think you need a mining laser when you travel the depths." 06326_ 6U-TBF(g): "Pshh... whatever." 06327_ 6U-TBF(g): "Everyone knows a good old rocket launcher goes a long way." 06328_ 6U-TBF(g): "Need to get rid of a swarm? Done. Need a big hole in the wall? Done." 06329_ 6U-TBF(g): "Need a small hole in the wall? Leave that to the mining laser wimps, I say!" 06330_ 6U-TBF(g): "Would you like a rocket launcher? I know I would if I were you, so I'm going to lend you mine." 06330_ 6U-TBF(g) slips back into the shadows. 06413_ Acquired Rocket Launcher. 06554_ T-07 Excavator is excavating. 06572_ K-01 Serf collects debris. 06588_ T-07 Excavator is excavating. 06630_ K-01 Serf collects debris. 06630_ T-07 Excavator is excavating. 06634_ K-01 Serf collects debris. 07211_ Lgt. Treads destroyed. 07224_ Assault Rifle severed. 07225_ G-34 Mercenary destroyed. 07225_ EXIT=FOUND 07231_ L-31 Rogue destroyed. Map ----- +----------------------------------------------------+ | ??????????????????????????????## """ ##????????? | | ???????????????????????????????# """ ##???????? | | ???????????????????????????????# """ ###?????? | | ???????????????????????????????## #####?? | | ????????????????????????????????## ## ##? | | ????????????????????????????????## #### #? | | ????????????????????????????????# #??#### #? | | ????????????????????????????????# #?????## ##? | | ????????????????????????????????## ##?????## #?? | | ?????????????????????????????????## #?????## ##?? | | ??????????????????"" ############ #????## #??? | | ??????????????????"" #????# ##??? | | ??????????????????????## #### #######????# #???? | | ???????????????????????# #??# ###????????# ##???? | | ???????????????????????# #??# #????????###?????? | | ?????????#?????????????# #??### #????????????????? | | ????????## ######???### #????# #???????#####????? | | ???????## #### ##???# ######### ##???? | | ???????# ##### # ## #???? | | ??????# #??## | | ????? ##?## | | ????? ### ###### ########## | | ??????????????????## ##???# ####### ## | | ???????????????????#### ##??# ##?## | | ??????????????????????## ####u #### | | ???????????????????????##@ u ## # | | ??????????????????????? % ## ## | | ????????????????????? t ##### ######? | | ???????????????? #### #?????? | | ???????????? #?????? | | ???????????? =%g ##????? | | ???????????# ## ## #####? | | ????????????# ??## #### ## ## | | ??????????????????## ####??## #### # | | ???????????????????# $ ???????##### ##?## # | | ??????????????????? ???????????## ##?## # | | ?????????????????? ????????????# ##?### # | | ?????????????????? ?????????????## #??# | | ?????????????????? ??????????????# #??# | | ???????????????????